fUST/lending_fUST_20241229
["ID","MTS","AMOUNT","RATE_DAILY","PERIOD"]
[346959250,1735428633449,-500.0,0.00017663,2]
[346959251,1735428633458,-500.0,0.00017663,2]
[346959252,1735428633468,-500.0,0.00017663,2]
[346959253,1735428633477,-500.0,0.00017663,2]
[346959254,1735428633487,-500.0,0.00017663,2]
[346959255,1735428633496,-500.0,0.00017663,2]
[346959256,1735428633506,-500.0,0.00017663,2]
[346959257,1735428633515,-500.0,0.00017663,2]
[346959258,1735428633525,-500.0,0.00017663,2]
[346959259,1735428633534,-500.0,0.00017663,2]
[346959260,1735428633544,-500.0,0.00017663,2]
[346959261,1735428633553,-500.0,0.00017663,2]
[346959262,1735428633563,-500.0,0.00017663,2]
[346959263,1735428633573,-500.0,0.00017663,2]
[346959264,1735428633582,-500.0,0.00017663,2]
[346959265,1735428633593,-500.0,0.00017663,2]
[346959266,1735428633602,-500.0,0.00017663,2]
[346959267,1735428633612,-500.0,0.00017663,2]
[346959268,1735428633622,-500.0,0.00017663,2]
[346959269,1735428633632,-3415.56,0.00017663,2]
[346959270,1735428633641,-500.0,0.00017663,2]
[346959271,1735428633651,-500.0,0.00017663,2]
[346959272,1735428633660,-500.0,0.00017663,2]
[346959273,1735428633669,-500.0,0.00017663,2]
[346959274,1735428633679,-500.0,0.00017663,2]
[346959275,1735428633689,-500.0,0.00017663,2]
[346959276,1735428633698,-8106.4,0.00017663,2]
[346959277,1735428633707,-500.0,0.00017663,2]
[346959278,1735428633717,-478.57681976,0.00017663,2]
[346959279,1735428633727,-585.74,0.00017663,2]
[346959280,1735428633736,-500.0,0.00017663,2]
[346959281,1735428633746,-500.0,0.00017663,2]
[346959282,1735428633755,-500.0,0.00017663,2]
[346959283,1735428633766,-500.0,0.00017663,2]
[346959284,1735428633775,-405.74388794,0.00017663,2]
[346959285,1735428633785,-500.0,0.00017663,2]
[346959286,1735428633795,-245.51700711,0.00017663,2]
[346959287,1735428633805,-500.0,0.00017663,2]
[346959288,1735428633815,-500.0,0.00017663,2]
[346959289,1735428633824,-500.0,0.00017663,2]
[346959290,1735428633834,-500.0,0.00017663,2]
[346959291,1735428633843,-500.0,0.00017663,2]
[346959292,1735428633853,-500.0,0.00017663,2]
[346959293,1735428633862,-500.0,0.00017663,2]
[346959294,1735428633871,-500.0,0.00017663,2]
[346959295,1735428633880,-500.0,0.00017663,2]
[346959296,1735428633890,-500.0,0.00017663,2]
[346959297,1735428633899,-500.0,0.00017663,2]
[346959298,1735428633909,-641.61,0.00017663,2]
[346959299,1735428633918,-500.0,0.00017663,2]
[346959300,1735428633927,-500.0,0.00017663,2]
[346959301,1735428633937,-500.0,0.00017663,2]
[346959302,1735428633946,-163.60311353,0.00017663,2]
[346959321,1735428638495,-500.0,0.00017661,2]
[346959322,1735428638505,-336.39688647,0.00017663,2]
[346959323,1735428638515,-500.0,0.00017664,2]
[346959324,1735428638527,-502.0979328,0.00017664,2]
[346959325,1735428638536,-500.0,0.00017664,2]
[346959326,1735428638545,-526.07,0.00017664,2]
[346959327,1735428638554,-464.30781795,0.00017664,2]
[346959328,1735428638564,-500.0,0.00017664,2]
[346959329,1735428638573,-500.0,0.00017664,2]
[346959330,1735428638582,-500.0,0.00017664,2]
[346959331,1735428638592,-500.0,0.00017664,2]
[346959332,1735428638601,-178.75816464,0.00017664,2]
[346959333,1735428638610,-500.0,0.00017664,2]
[346959334,1735428638620,-574.58,0.00017664,2]
[346959335,1735428638629,-500.0,0.00017664,2]
[346959336,1735428638721,-500.0,0.00017664,2]
[346959337,1735428638731,-500.0,0.00017664,2]
[346959338,1735428638741,-500.0,0.00017664,2]
[346959339,1735428638751,-500.0,0.00017664,2]
[346959340,1735428638761,-500.0,0.00017664,2]
[346959341,1735428638771,-500.0,0.00017664,2]
[346959342,1735428638780,-500.0,0.00017664,2]
[346959343,1735428638790,-500.0,0.00017664,2]
[346959344,1735428638799,-500.0,0.00017664,2]
[346959345,1735428638808,-500.0,0.00017664,2]
[346959346,1735428638817,-500.0,0.00017664,2]
[346959347,1735428638827,-500.0,0.00017664,2]
[346959348,1735428638836,-500.0,0.00017664,2]
[346959349,1735428638845,-500.0,0.00017664,2]
[346959350,1735428638854,-500.0,0.00017664,2]
[346959351,1735428638863,-500.0,0.00017664,2]
[346959352,1735428638873,-500.0,0.00017664,2]
[346959353,1735428638882,-500.0,0.00017664,2]
[346959354,1735428638892,-500.0,0.00017664,2]
[346959355,1735428638901,-500.0,0.00017664,2]
[346959356,1735428638910,-500.0,0.00017664,2]
[346959357,1735428638920,-500.0,0.00017664,2]
[346959358,1735428638929,-500.0,0.00017664,2]
[346959359,1735428638939,-500.0,0.00017664,2]
[346959360,1735428638948,-500.0,0.00017664,2]
[346959361,1735428638958,-500.0,0.00017664,2]
[346959362,1735428638967,-500.0,0.00017664,2]
[346959363,1735428638976,-500.0,0.00017664,2]
[346959364,1735428638985,-500.0,0.00017664,2]
[346959365,1735428638994,-500.0,0.00017664,2]
[346959366,1735428639004,-500.0,0.00017664,2]
[346959367,1735428639014,-500.0,0.00017664,2]
[346959368,1735428639023,-500.0,0.00017664,2]
[346959369,1735428639033,-500.0,0.00017664,2]
[346959370,1735428639042,-500.0,0.00017664,2]
[346959371,1735428639052,-1483.11,0.00017664,2]
[346959372,1735428639062,-520.11034646,0.00017664,2]
[346959373,1735428639071,-501.05345712,0.00017664,2]
[346959374,1735428639080,-504.04148761,0.00017664,2]
[346959375,1735428639090,-378.41333427,0.00017664,2]
[346959376,1735428639099,-500.0,0.00017664,2]
[346959377,1735428639108,-500.0,0.00017664,2]
[346959378,1735428639118,-500.0,0.00017664,2]
[346959379,1735428639127,-500.0,0.00017664,2]
[346959380,1735428639135,-500.0,0.00017664,2]
[346959381,1735428639146,-500.0,0.00017664,2]
[346959382,1735428639156,-500.0,0.00017664,2]
[346959383,1735428639165,-500.0,0.00017664,2]
[346959384,1735428639174,-500.0,0.00017664,2]
[346959385,1735428639183,-500.0,0.00017664,2]
[346959386,1735428639193,-500.0,0.00017664,2]
[346959387,1735428639202,-275.66278501,0.00017664,2]
[346959388,1735428639213,-500.0,0.00017664,2]
[346959389,1735428639222,-500.0,0.00017664,2]
[346959390,1735428639231,-500.0,0.00017664,2]
[346959391,1735428639241,-500.0,0.00017664,2]
[346959392,1735428639251,-500.0,0.00017664,2]
[346959393,1735428639264,-500.0,0.00017664,2]
[346959394,1735428639273,-500.0,0.00017664,2]
[346959395,1735428639283,-500.0,0.00017664,2]
[346959396,1735428639292,-500.0,0.00017664,2]
[346959397,1735428639303,-500.0,0.00017664,2]
[346959398,1735428639312,-500.0,0.00017664,2]
[346959399,1735428639322,-500.0,0.00017664,2]
[346959400,1735428639333,-500.0,0.00017664,2]
[346959401,1735428639343,-501.18025195,0.00017664,2]
[346959402,1735428639352,-500.0,0.00017664,2]
[346959403,1735428639363,-500.0,0.00017664,2]
[346959404,1735428639373,-500.0,0.00017664,2]
[346959405,1735428639383,-500.0,0.00017664,2]
[346959406,1735428639393,-979.86,0.00017664,2]
[346959407,1735428639403,-500.0,0.00017664,2]
[346959408,1735428639414,-500.0,0.00017664,2]
[346959409,1735428639423,-500.0,0.00017664,2]
[346959410,1735428639431,-500.0,0.00017664,2]
[346959411,1735428639440,-500.0,0.00017664,2]
[346959412,1735428639450,-500.0,0.00017664,2]
[346959413,1735428639459,-500.0,0.00017664,2]
[346959414,1735428639468,-500.0,0.00017664,2]
[346959415,1735428639478,-500.0,0.00017664,2]
[346959416,1735428639488,-500.0,0.00017664,2]
[346959417,1735428639497,-500.0,0.00017664,2]
[346959418,1735428639508,-500.0,0.00017664,2]
[346959419,1735428639518,-500.0,0.00017665,2]
[346959420,1735428639527,-500.0,0.00017665,2]
[346959421,1735428639536,-500.0,0.00017665,2]
[346959422,1735428639546,-1483.11,0.00017665,2]
[346959423,1735428639555,-500.0,0.00017665,2]
[346959424,1735428639564,-500.0,0.00017665,2]
[346959425,1735428639573,-1693.3,0.00017665,2]
[346959426,1735428639583,-485.70053789,0.00017666,2]
[346959427,1735428639592,-497.4566339,0.00017666,2]
[346959428,1735428639601,-1574.04,0.00017666,2]
[346959429,1735428639611,-500.0,0.00017935,2]
[346959430,1735428639621,-500.0,0.00017936,2]
[346959431,1735428639630,-500.0,0.00017936,2]
[346959432,1735428639639,-500.0,0.00017936,2]
[346959433,1735428639649,-500.0,0.00017936,2]
[346959434,1735428639658,-687.04,0.00017936,2]
[346959435,1735428639668,-500.0,0.00017936,2]
[346959436,1735428639677,-700.45,0.00017936,2]
[346959437,1735428639686,-500.0,0.00017936,2]
[346959438,1735428639696,-500.0,0.00017936,2]
[346959439,1735428639705,-500.0,0.00017936,2]
[346959440,1735428639715,-500.0,0.00017936,2]
[346959441,1735428639724,-342.18,0.00017936,2]
[346959442,1735428639734,-500.0,0.00017936,2]
[346959443,1735428639743,-1326.49,0.00017936,2]
[346959444,1735428639759,-233.31,0.00017936,2]
[346959445,1735428639769,-255.37,0.00017937,2]
[346959446,1735428639779,-314.49,0.00017937,2]
[346959447,1735428639789,-500.0,0.00017937,2]
[346959448,1735428639798,-1483.11,0.00017937,2]
[346959449,1735428639807,-500.0,0.00017937,2]
[346959450,1735428639817,-318.48,0.00017937,2]
[346959451,1735428639826,-270.58,0.00017937,2]
[346959452,1735428639835,-500.0,0.00017937,2]
[346959453,1735428639845,-226.73,0.00017937,2]
[346959454,1735428639854,-8106.4,0.00017937,2]
[346959455,1735428639863,-264.91,0.00017937,2]
[346959456,1735428639873,-500.0,0.00017937,2]
[346959457,1735428639882,-649.27,0.00017937,2]
[346959458,1735428639891,-500.0,0.00017937,2]
[346959459,1735428639900,-347.41,0.00017937,2]
[346959460,1735428639910,-191.59,0.00017937,2]
[346959461,1735428639919,-500.0,0.00017937,2]
[346959462,1735428639929,-500.0,0.00017938,2]
[346959463,1735428639940,-500.0,0.00017938,2]
[346959464,1735428639949,-979.86,0.00017938,2]
[346959465,1735428639958,-197.62,0.00017938,2]
[346959466,1735428639968,-500.0,0.00017938,2]
[346959467,1735428639978,-392.4,0.00017939,2]
[346959468,1735428639987,-500.0,0.00017939,2]
[346959469,1735428639996,-500.0,0.00017939,2]
[346959470,1735428640007,-1693.3,0.00017939,2]
[346959471,1735428640016,-1483.11,0.0001794,2]
[346959472,1735428640026,-1574.04,0.0001794,2]
[346959473,1735428640035,-500.0,0.0001821,2]
[346959474,1735428640045,-500.0,0.0001821,2]
[346959475,1735428640055,-500.0,0.0001821,2]
[346959476,1735428640064,-500.0,0.0001821,2]
[346959477,1735428640073,-687.04,0.0001821,2]
[346959478,1735428640083,-500.0,0.0001821,2]
[346959479,1735428640092,-700.45,0.0001821,2]
[346959480,1735428640102,-500.0,0.0001821,2]
[346959481,1735428640111,-500.0,0.0001821,2]
[346959482,1735428640120,-500.0,0.0001821,2]
[346959483,1735428640129,-500.0,0.0001821,2]
[346959486,1735428640138,-500.0,0.0001821,2]
[346959488,1735428640148,-1326.49,0.0001821,2]
[346959490,1735428640158,-158.56,0.00018211,2]
[346959492,1735428640167,-1483.11,0.00018211,2]
[346959494,1735428640177,-500.0,0.00018211,2]
[346959496,1735428640187,-500.0,0.00018211,2]
[346959498,1735428640196,-8106.4,0.00018211,2]
[346959500,1735428640205,-500.0,0.00018211,2]
[346959501,1735428640214,-500.0,0.00018211,2]
[346959502,1735428640223,-500.0,0.00018211,2]
[346959503,1735428640233,-500.0,0.00018212,2]
[346959504,1735428640242,-979.86,0.00018212,2]
[346959505,1735428640252,-500.0,0.00018212,2]
[346959506,1735428640264,-500.0,0.00018213,2]
[346959507,1735428640273,-500.0,0.00018213,2]
[346959508,1735428640283,-1693.3,0.00018213,2]
[346959510,1735428640291,-1574.04,0.00018214,2]
[346959512,1735428640301,-943.7735839,0.00018313,2]
[346959513,1735428640312,-500.0,0.00018484,2]
[346959514,1735428640321,-500.0,0.00018484,2]
[346959516,1735428640331,-500.0,0.00018484,2]
[346959517,1735428640340,-500.0,0.00018484,2]
[346959518,1735428640351,-687.04,0.00018484,2]
[346959519,1735428640360,-500.0,0.00018484,2]
[346959520,1735428640369,-700.45,0.00018484,2]
[346959521,1735428640378,-500.0,0.00018484,2]
[346959522,1735428640387,-500.0,0.00018484,2]
[346959523,1735428640396,-500.0,0.00018484,2]
[346959524,1735428640405,-500.0,0.00018484,2]
[346959525,1735428640414,-1326.49,0.00018484,2]
[346959526,1735428640423,-1483.11,0.00018485,2]
[346959527,1735428640432,-500.0,0.00018485,2]
[346959528,1735428640442,-573.7,0.00018485,2]
[346959530,1735428640450,-3243.69368646,0.00018485,2]
[346959531,1735428640648,-3273.24,0.00017662,2]
[346959532,1735428640658,-3273.24,0.00017936,2]
[346959533,1735428640667,-3273.24,0.0001821,2]
[346959534,1735428640677,-3273.24,0.00018484,2]
[346959535,1735428640686,-4862.70631354,0.00018485,2]
[346959536,1735428640696,-500.0,0.00018485,2]
[346959537,1735428640705,-500.0,0.00018485,2]
[346959538,1735428640714,-500.0,0.00018485,2]
[346959539,1735428640723,-500.0,0.00018486,2]
[346959540,1735428640732,-979.86,0.00018486,2]
[346959541,1735428640742,-500.0,0.00018486,2]
[346959542,1735428640751,-500.0,0.00018487,2]
[346959543,1735428640760,-1693.3,0.00018487,2]
[346959544,1735428640769,-1574.04,0.00018488,2]
[346959545,1735428640781,-500.0,0.00018758,2]
[346959546,1735428640791,-500.0,0.00018758,2]
[346959547,1735428640800,-540.21,0.00018758,2]
[346959548,1735428640810,-500.0,0.00018758,2]
[346959549,1735428640819,-687.04,0.00018758,2]
[346959550,1735428640828,-500.0,0.00018758,2]
[346959551,1735428640838,-700.45,0.00018758,2]
[346959552,1735428640848,-500.0,0.00018758,2]
[346959553,1735428640857,-500.0,0.00018758,2]
[346959554,1735428640867,-500.0,0.00018758,2]
[346959555,1735428640877,-500.0,0.00018758,2]
[346959556,1735428640886,-1326.49,0.00018758,2]
[346959557,1735428640896,-3273.24,0.00018758,2]
[346959558,1735428640905,-1483.11,0.00018759,2]
[346959559,1735428640915,-546.29,0.00018759,2]
[346959560,1735428640924,-8106.4,0.00018759,2]
[346959561,1735428640934,-500.0,0.00018759,2]
[346959562,1735428640944,-500.0,0.00018759,2]
[346959563,1735428640953,-500.0,0.00018759,2]
[346959564,1735428640963,-1483.11,0.0001876,2]
[346959565,1735428640973,-500.0,0.0001876,2]
[346959566,1735428640983,-979.86,0.0001876,2]
[346959567,1735428641071,-500.0,0.0001876,2]
[346959568,1735428641082,-1693.3,0.00018761,2]
[346959569,1735428641092,-1574.04,0.00018762,2]
[346959570,1735428641103,-214.2328397,0.00019014,2]
[346959571,1735428641113,-500.0,0.00019032,2]
[346959572,1735428641122,-164.1,0.00019032,2]
[346959573,1735428641132,-500.0,0.00019032,2]
[346959574,1735428641141,-687.04,0.00019032,2]
[346959575,1735428641150,-500.0,0.00019032,2]
[346959576,1735428641160,-700.45,0.00019032,2]
[346959577,1735428641169,-500.0,0.00019032,2]
[346959578,1735428641179,-500.0,0.00019032,2]
[346959579,1735428641188,-500.0,0.00019032,2]
[346959580,1735428641197,-309.97,0.00019032,2]
[346959581,1735428641207,-1326.49,0.00019032,2]
[346959582,1735428641217,-3273.24,0.00019032,2]
[346959583,1735428641227,-1483.11,0.00019033,2]
[346959584,1735428641236,-8106.4,0.00019033,2]
[346959585,1735428641246,-151.0,0.00019033,2]
[346959586,1735428641258,-500.0,0.00019033,2]
[346959587,1735428641267,-151.0,0.00019033,2]
[346959588,1735428641277,-151.0,0.00019033,2]
[346959589,1735428641287,-500.0,0.00019033,2]
[346959590,1735428641296,-500.0,0.00019033,2]
[346959591,1735428641306,-151.0,0.00019033,2]
[346959592,1735428641315,-151.0,0.00019034,2]
[346959593,1735428641324,-151.0,0.00019034,2]
[346959594,1735428641334,-210.449332,0.00019034,2]
[346959595,1735428641343,-500.0,0.00019034,2]
[346959596,1735428641353,-151.0,0.00019034,2]
[346959597,1735428641362,-151.0,0.00019034,2]
[346959598,1735428641372,-151.0,0.00019034,2]
[346959599,1735428641382,-979.86,0.00019034,2]
[346959600,1735428641391,-151.0,0.00019034,2]
[346959601,1735428641400,-151.0,0.00019034,2]
[346959602,1735428641410,-293.70757977,0.00019034,2]
[346959603,1735428641419,-1693.3,0.00019035,2]
[346959604,1735428641428,-1574.04,0.00019036,2]
[346959605,1735428641438,-943.7735839,0.0001906,2]
[346959606,1735428641448,-632.975,0.0001914,2]
[346959607,1735428641459,-164.950358,0.00019178,2]
[346959608,1735428641469,-151.0,0.00019196,2]
[346959609,1735428641483,-151.0,0.00019196,2]
[346959610,1735428641492,-151.0,0.00019196,2]
[346959611,1735428641502,-500.0,0.00019306,2]
[346959612,1735428641512,-500.0,0.00019306,2]
[346959613,1735428641522,-687.04,0.00019306,2]
[346959614,1735428641534,-500.0,0.00019306,2]
[346959615,1735428641543,-700.45,0.00019306,2]
[346959616,1735428641552,-500.0,0.00019306,2]
[346959617,1735428641562,-500.0,0.00019306,2]
[346959618,1735428641571,-500.0,0.00019306,2]
[346959619,1735428641581,-1326.49,0.00019306,2]
[346959620,1735428641590,-3273.24,0.00019306,2]
[346959621,1735428641600,-1483.11,0.00019307,2]
[346959622,1735428641609,-151.0,0.00019307,2]
[346959623,1735428641619,-8106.4,0.00019307,2]
[346959624,1735428641628,-473.92,0.00019307,2]
[346959625,1735428641638,-448.31,0.00019307,2]
[346959626,1735428641647,-500.0,0.00019307,2]
[346959627,1735428641657,-151.0,0.00019308,2]
[346959628,1735428641666,-500.0,0.00019308,2]
[346959629,1735428641675,-979.86,0.00019308,2]
[346959630,1735428641685,-1693.3,0.00019309,2]
[346959631,1735428641696,-151.0,0.0001931,2]
[346959632,1735428641705,-1574.04,0.0001931,2]
[346959633,1735428641715,-500.0,0.0001958,2]
[346959634,1735428641725,-500.0,0.0001958,2]
[346959635,1735428641735,-687.04,0.0001958,2]
[346959636,1735428641744,-636.93,0.0001958,2]
[346959637,1735428641754,-700.45,0.0001958,2]
[346959638,1735428641764,-500.0,0.0001958,2]
[346959639,1735428641774,-500.0,0.0001958,2]
[346959640,1735428641783,-429.8216982,0.0001958,2]
[346959641,1735428641793,-1326.49,0.0001958,2]
[346959642,1735428641802,-1483.11,0.00019581,2]
[346959643,1735428641812,-151.0,0.00019581,2]
[346959644,1735428641822,-5581.40363225,0.00019581,2]
[346959694,1735429266436,1002.42,0.00025,120]
[346959695,1735429372645,420.39310185,0.000255,30]
[346959696,1735429426585,1404.668517,0.000255,30]
[346959703,1735429538117,-400.0,0.00013695,2]
[346959704,1735429538143,-400.0,0.00013833,2]
[346959705,1735429538166,-400.0,0.00013973,2]
[346959706,1735429538186,-1008.71220117,0.00014987,2]
[346959707,1735429538208,-866.40598788,0.0001499,2]
[346959708,1735429584155,2188.20955055,0.000255,30]
[346959709,1735429631144,-142.30621329,0.0001499,2]
[346959710,1735429631167,-1008.71220117,0.00015,2]
[346959711,1735429631187,-151.0,0.00017298,2]
[346959712,1735429631208,-151.0,0.00017473,2]
[346959713,1735429631228,-88.171542,0.0001756,2]
[346959714,1735429633096,-76.9442224,0.0001756,2]
[346959715,1735429633118,-151.0,0.0001765,2]
[346959716,1735429633140,-300.0,0.00017658,2]
[346959717,1735429633160,-565.03455648,0.00017659,2]
[346959718,1735429633182,-498.61707561,0.00017659,2]
[346959719,1735429633205,-500.0,0.00017659,2]
[346959720,1735429633227,-149.02488234,0.00017659,2]
[346959721,1735429645095,-157.0362883,0.00017482,2]
[346959722,1735429645118,-350.97511766,0.00017659,2]
[346959723,1735429645140,-500.0,0.00017659,2]
[346959724,1735429645162,-46.38921101,0.00017659,2]
[346959725,1735429647133,-157.0362883,0.00017307,2]
[346959726,1735429647155,-120.95427036,0.00017659,2]
[346959783,1735429832800,-165.1157644,0.0001756,2]
[346959785,1735429832810,-300.0,0.00017658,2]
[346959787,1735429832819,-500.0,0.00017659,2]
[346959789,1735429832829,-196.01401584,0.00017659,2]
[346959791,1735429832840,-303.98598416,0.00017659,2]
[346959793,1735429832850,-500.0,0.00017659,2]
[346959795,1735429832860,-500.0,0.00017659,2]
[346959797,1735429832869,-500.0,0.00017659,2]
[346959799,1735429832879,-718.97,0.00017659,2]
[346959801,1735429832888,-500.0,0.00017659,2]
[346959803,1735429832899,-500.0,0.00017659,2]
[346959805,1735429832908,-500.0,0.00017659,2]
[346959808,1735429832918,-500.0,0.00017659,2]
[346959810,1735429832928,-500.0,0.00017659,2]
[346959812,1735429832937,-500.0,0.00017659,2]
[346959814,1735429832947,-500.0,0.00017659,2]
[346959816,1735429832956,-500.0,0.00017659,2]
[346959819,1735429832966,-500.0,0.00017659,2]
[346959822,1735429832976,-334.86760645,0.00017659,2]
[346959825,1735429832985,-620.5785561,0.00017659,2]
[346959827,1735429832995,-445.4963406,0.00017659,2]
[346959829,1735429833004,-180.0,0.00017659,2]
[346959831,1735429833014,-500.0,0.00017659,2]
[346959833,1735429833023,-491.58065609,0.00017659,2]
[346959835,1735429833033,-500.0,0.0001766,2]
[346959837,1735429833043,-500.0,0.0001766,2]
[346959839,1735429833053,-500.0,0.0001766,2]
[346959841,1735429833062,-500.0,0.0001766,2]
[346959843,1735429833072,-500.0,0.0001766,2]
[346959845,1735429833081,-500.0,0.0001766,2]
[346959847,1735429833091,-504.0,0.0001766,2]
[346959849,1735429833100,-679.76,0.0001766,2]
[346959851,1735429833110,-500.0,0.0001766,2]
[346959853,1735429833120,-500.0,0.0001766,2]
[346959855,1735429833132,-458.14,0.0001766,2]
[346959858,1735429833144,-500.0,0.0001766,2]
[346959860,1735429833156,-500.0,0.0001766,2]
[346959862,1735429833166,-500.0,0.0001766,2]
[346959864,1735429833176,-500.0,0.0001766,2]
[346959865,1735429833185,-500.0,0.0001766,2]
[346959867,1735429833195,-542.41,0.0001766,2]
[346959869,1735429833205,-500.0,0.0001766,2]
[346959871,1735429833214,-352.2108566,0.0001766,2]
[346959873,1735429833226,-147.7891434,0.0001766,2]
[346959875,1735429833236,-500.0,0.0001766,2]
[346959876,1735429833245,-159.8908566,0.0001766,2]
[346959879,1735429833257,-340.1091434,0.0001766,2]
[346959880,1735429833267,-3.44847838,0.0001766,2]
[346959881,1735429833278,-462.228,0.0001766,2]
[346959882,1735429833289,-34.32352162,0.0001766,2]
[346959883,1735429833299,-422.41172575,0.0001766,2]
[346959930,1735429838658,-405.33942812,0.00017659,2]
[346959943,1735429840842,-94.66057188,0.00017659,2]
[346959945,1735429840852,-500.0,0.00017659,2]
[346959946,1735429840861,-77.58827425,0.0001766,2]
[346959947,1735429840871,-500.0,0.0001766,2]
[346959948,1735429840881,-444.89747907,0.0001766,2]
[346959949,1735429840891,-199.70935872,0.0001766,2]
[346959950,1735429840901,-500.0,0.0001766,2]
[346959951,1735429840910,-500.0,0.0001766,2]
[346959952,1735429840921,-262.96574021,0.0001766,2]
[346959953,1735429840930,-500.0,0.0001766,2]
[346959954,1735429840940,-500.0,0.0001766,2]
[346959955,1735429840949,-567.67803232,0.0001766,2]
[346959956,1735429840959,-230.67459954,0.0001766,2]
[346959957,1735429840968,-884.32,0.0001766,2]
[346959958,1735429840977,-500.0,0.0001766,2]
[346959959,1735429840987,-500.0,0.0001766,2]
[346959960,1735429840996,-500.0,0.0001766,2]
[346959961,1735429841005,-500.0,0.0001766,2]
[346959962,1735429841014,-500.0,0.0001766,2]
[346959963,1735429841023,-500.0,0.0001766,2]
[346959964,1735429841032,-500.0,0.0001766,2]
[346959965,1735429841042,-500.0,0.0001766,2]
[346959966,1735429841051,-2318.55,0.0001766,2]
[346959967,1735429841060,-500.0,0.0001766,2]
[346959968,1735429841069,-500.0,0.0001766,2]
[346959969,1735429841079,-500.0,0.0001766,2]
[346959970,1735429841088,-500.0,0.0001766,2]
[346959971,1735429841098,-500.0,0.0001766,2]
[346959972,1735429841107,-500.0,0.0001766,2]
[346959973,1735429841116,-10079.65,0.0001766,2]
[346959974,1735429841125,-500.0,0.0001766,2]
[346959975,1735429841134,-500.0,0.0001766,2]
[346959976,1735429841143,-500.0,0.0001766,2]
[346959977,1735429841152,-500.0,0.0001766,2]
[346959978,1735429841161,-500.0,0.0001766,2]
[346959979,1735429841169,-500.0,0.0001766,2]
[346959980,1735429841268,-271.87271591,0.0001766,2]
[346959981,1735429841280,-820.39,0.0001766,2]
[346959982,1735429841289,-500.0,0.0001766,2]
[346959983,1735429841300,-500.0,0.0001766,2]
[346959984,1735429841311,-500.0,0.0001766,2]
[346959985,1735429841321,-500.0,0.0001766,2]
[346959986,1735429841332,-500.0,0.0001766,2]
[346959987,1735429841342,-500.0,0.0001766,2]
[346959988,1735429841352,-500.0,0.0001766,2]
[346959989,1735429841362,-500.0,0.0001766,2]
[346959990,1735429841372,-500.0,0.0001766,2]
[346959991,1735429841383,-500.0,0.0001766,2]
[346959992,1735429841395,-500.0,0.0001766,2]
[346959993,1735429841404,-500.0,0.0001766,2]
[346959994,1735429841414,-500.0,0.0001766,2]
[346959995,1735429841430,-500.0,0.0001766,2]
[346959996,1735429841439,-500.0,0.0001766,2]
[346959997,1735429841448,-500.0,0.00017661,2]
[346959998,1735429841458,-500.0,0.00017661,2]
[346959999,1735429841467,-500.0,0.00017661,2]
[346960000,1735429841479,-500.0,0.00017661,2]